bitfinex/quotes_BTCUSD_20230118
["timestamp","ask_amount","ask_price","bid_price","bid_amount"]
[1674023760531,0.16981092,21272.0,21271.0,1.9011883]
[1674023760739,0.16981092,21272.0,21271.0,2.01391777]
[1674023760998,0.16981092,21272.0,21271.0,1.78876083]
[1674023761505,0.16981092,21272.0,21271.0,1.90125303]
[1674023761775,0.16981092,21272.0,21271.0,2.03235045]
[1674023762058,0.16981092,21272.0,21271.0,2.31396427]
[1674023762579,0.3615,21276.0,21272.0,0.15197959]
[1674023762838,0.3615,21276.0,21274.0,0.11259458]
[1674023763098,0.43704192,21278.0,21275.0,0.470035]
[1674023763382,0.43704192,21278.0,21275.0,0.50490687]
[1674023763629,0.43880564,21278.0,21275.0,0.50490687]
[1674023763915,0.43704192,21278.0,21275.0,0.50490687]
[1674023764179,0.43704192,21278.0,21275.0,0.470035]
[1674023764624,0.00231189,21277.0,21275.0,0.470035]
[1674023765409,0.11281189,21277.0,21275.0,0.470035]
[1674023766456,0.11281189,21277.0,21275.0,0.58262958]
[1674023766739,0.11281189,21277.0,21275.0,1.05266458]
[1674023767000,0.11281189,21277.0,21275.0,0.94007]
[1674023768009,0.11281189,21277.0,21275.0,1.05266458]
[1674023768010,0.00231189,21277.0,21275.0,1.05266458]
[1674023768264,0.00231189,21277.0,21276.0,0.11259458]
[1674023768542,0.00231189,21277.0,21276.0,0.940026]
[1674023769324,0.44315422,21280.0,21276.0,0.940026]
[1674023769627,0.44315422,21280.0,21276.0,0.97489787]
[1674023770402,0.00239936,21279.0,21276.0,0.97489787]
[1674023770659,0.00239936,21279.0,21276.0,0.940026]
[1674023776131,0.00239936,21279.0,21276.0,1.22151245]
[1674023777240,0.00239936,21279.0,21276.0,1.05262058]
[1674023777720,0.00239936,21279.0,21276.0,0.940026]
[1674023779612,0.00239936,21279.0,21276.0,1.22151245]
[1674023780150,0.00239936,21279.0,21276.0,1.05262058]
[1674023780399,0.00239936,21279.0,21276.0,0.940026]
[1674023782294,0.00176372,21278.0,21276.0,0.940026]
[1674023782539,0.30362531,21279.0,21276.0,0.940026]
[1674023782823,0.11289936,21279.0,21276.0,0.940026]
[1674023783581,0.1128111,21279.0,21276.0,0.940026]
[1674023786131,0.1128111,21279.0,21277.0,0.00033446]
[1674023786383,0.1128111,21279.0,21277.0,0.47031446]
[1674023786850,0.11457482,21279.0,21277.0,0.46998]
[1674023787882,0.1128111,21279.0,21277.0,0.46998]
[1674023790652,0.1128111,21279.0,21277.0,0.46990389]
[1674023792808,0.11457482,21279.0,21277.0,0.46990389]
[1674023793309,0.1128111,21279.0,21277.0,0.46990389]
[1674023794530,0.71104013,21278.0,21275.0,0.470028]
[1674023794782,0.1105,21276.0,21275.0,0.470028]
[1674023797243,0.11258893,21276.0,21275.0,0.470028]
[1674023798241,0.11435265,21276.0,21275.0,0.470028]
[1674023798487,0.11258893,21276.0,21275.0,0.470028]
[1674023799225,0.11258893,21276.0,21274.0,0.470042]
[1674023799226,0.11435265,21276.0,21274.0,0.470042]
[1674023799730,0.11258893,21276.0,21274.0,0.470042]
[1674023800771,0.11435265,21276.0,21274.0,0.470042]
[1674023801249,0.11258893,21276.0,21274.0,0.470042]
[1674023801506,0.11258893,21276.0,21274.0,0.940099]
[1674023801761,0.00208893,21276.0,21274.0,1.05269358]
[1674023802257,0.79186608,21278.0,21274.0,1.05269358]
[1674023802258,0.79391126,21278.0,21274.0,1.05269358]
[1674023802506,0.60318531,21278.0,21274.0,1.08756545]
[1674023803409,0.60318531,21278.0,21274.0,1.05269358]
[1674023803837,0.60318531,21278.0,21275.0,0.007]
[1674023804070,0.60318531,21278.0,21275.0,0.470029]
[1674023804792,0.60318531,21278.0,21275.0,0.562029]
[1674023805041,0.60318531,21278.0,21275.0,1.14465858]
[1674023806836,0.00176372,21277.0,21275.0,1.14465858]
[1674023807055,0.60318531,21278.0,21275.0,1.14465858]
[1674023807275,0.00212067,21277.0,21275.0,1.31355045]
[1674023807960,0.00212067,21277.0,21275.0,1.22155045]
[1674023808196,0.00212067,21277.0,21275.0,1.31355045]
[1674023808654,0.00212067,21277.0,21276.0,0.11259458]
[1674023808842,0.00212067,21277.0,21276.0,1.05262058]
[1674023809800,0.00212067,21277.0,21276.0,0.940026]
[1674023810334,0.1105,21279.0,21276.0,0.940026]
[1674023811098,0.1105,21279.0,21276.0,1.032026]
[1674023811333,0.0021644,21278.0,21276.0,0.940026]
[1674023811862,0.0021644,21278.0,21276.0,1.033026]
[1674023812392,0.0021644,21278.0,21276.0,0.940026]
[1674023812968,0.0021644,21278.0,21276.0,1.032026]
[1674023817025,0.0021644,21278.0,21276.0,1.14462058]
[1674023817272,0.0021644,21278.0,21276.0,1.032026]
[1674023817778,0.0021644,21278.0,21276.0,1.14462058]
[1674023819425,0.0021644,21278.0,21276.0,1.032026]
[1674023820114,0.00208866,21278.0,21277.0,0.11259458]
[1674023820394,0.00208866,21278.0,21277.0,0.469991]
[1674023821213,0.00208866,21278.0,21277.0,0.939982]
[1674023821466,0.47632252,21281.0,21277.0,1.032982]
[1674023821467,0.47847177,21281.0,21277.0,1.032982]
[1674023821713,0.47847177,21281.0,21277.0,1.18044845]
[1674023821957,0.94010197,21280.0,21277.0,1.18044845]
[1674023822200,0.94010197,21280.0,21277.0,1.032982]
[1674023822459,0.94233868,21280.0,21277.0,1.032982]
[1674023822729,0.00223671,21280.0,21277.0,0.939982]
[1674023824283,0.00223671,21280.0,21277.0,1.003982]
[1674023824541,0.00223671,21280.0,21277.0,1.11657658]
[1674023825080,0.00223671,21280.0,21277.0,1.003982]
[1674023825607,0.00176372,21279.0,21277.0,0.79767154]
[1674023825985,0.11223671,21280.0,21277.0,0.79767154]
[1674023826400,0.00214925,21278.0,21277.0,0.79767154]
[1674023827493,0.11,21280.0,21277.0,0.73367154]
[1674023827760,0.00176372,21279.0,21277.0,0.82667154]
[1674023828016,0.11,21280.0,21277.0,0.73367154]
[1674023828276,0.11,21280.0,21277.0,0.82667154]
[1674023828531,0.00217373,21279.0,21277.0,0.73367154]
[1674023828789,0.00393745,21279.0,21277.0,0.79767154]
[1674023829046,0.00217373,21279.0,21277.0,0.79767154]
[1674023829568,0.00217373,21279.0,21277.0,0.73367154]
[1674023831241,0.00217373,21279.0,21277.0,0.82667154]
[1674023831496,0.01882239,21278.0,21277.0,0.82667154]
[1674023831743,0.01882239,21278.0,21277.0,0.35668054]
[1674023832248,0.01882239,21278.0,21277.0,0.26368054]
[1674023832550,0.02095239,21278.0,21277.0,0.35668054]
[1674023833298,0.02095239,21278.0,21277.0,0.35656923]
[1674023835308,0.02271611,21278.0,21277.0,0.35656923]
[1674023835570,0.02095239,21278.0,21277.0,0.35656923]
[1674023839178,0.02271611,21278.0,21277.0,0.35656923]
[1674023839456,0.02095239,21278.0,21277.0,0.35656923]
[1674023841590,0.02095239,21278.0,21277.0,0.26356923]
[1674023841753,0.02095239,21278.0,21277.0,0.33156923]
[1674023847942,0.02095239,21278.0,21277.0,0.068]
[1674023848453,0.02095239,21278.0,21277.0,0.537991]
[1674023848719,0.02095239,21278.0,21277.0,0.65058558]
[1674023849284,0.02095239,21278.0,21277.0,0.537991]
[1674023852512,0.02095239,21278.0,21277.0,0.65058558]
[1674023852758,0.02095239,21278.0,21277.0,0.537991]
[1674023853440,0.01993498,21278.0,21277.0,0.537991]
[1674023854208,0.01993498,21278.0,21277.0,0.65058558]
[1674023854484,0.01993498,21278.0,21277.0,1.12057658]
[1674023854741,0.01993498,21278.0,21277.0,1.60302416]
[1674023854993,0.01993498,21278.0,21277.0,1.71573043]
[1674023855264,0.01993498,21278.0,21277.0,1.71569559]
[1674023855538,0.01993498,21278.0,21277.0,1.71569557]
[1674023856058,0.01993498,21278.0,21277.0,1.60298891]
[1674023856939,0.01993498,21278.0,21277.0,1.71568095]
[1674023857109,0.01993498,21278.0,21277.0,1.12067404]
[1674023857629,0.01993498,21278.0,21277.0,1.28956591]
[1674023857893,0.01993498,21278.0,21277.0,1.71563688]
[1674023858683,0.01993498,21278.0,21277.0,1.828134]
[1674023859228,0.01993498,21278.0,21277.0,1.12065244]
[1674023864460,0.01993498,21278.0,21277.0,1.28954431]
[1674023864794,0.01993498,21278.0,21277.0,1.12065244]
[1674023865520,0.01993498,21278.0,21277.0,1.28954431]
[1674023865743,0.01993498,21278.0,21277.0,1.8272823]
[1674023866249,0.01993498,21278.0,21277.0,1.12064286]
[1674023868041,0.01993498,21278.0,21277.0,1.82759471]
[1674023868564,0.01993498,21278.0,21277.0,1.82550013]
[1674023868823,0.01993498,21278.0,21277.0,1.93532793]
[1674023869840,0.01993498,21278.0,21277.0,1.87014835]
[1674023870077,0.01993498,21278.0,21277.0,1.70123349]
[1674023870346,0.00558376,21281.0,21278.0,0.16571083]
[1674023870597,0.00558376,21281.0,21279.0,1.69134392]
[1674023870909,0.00558376,21281.0,21279.0,1.409838]
[1674023871348,0.00179146,21280.0,21279.0,1.409838]
[1674023872221,0.00179146,21280.0,21279.0,1.61444037]
[1674023872399,0.00179146,21280.0,21279.0,2.63064065]
[1674023872654,0.00179146,21280.0,21279.0,2.74324669]
[1674023872911,0.00179146,21280.0,21279.0,2.6511314]
[1674023873461,0.00179146,21280.0,21279.0,1.63286569]
[1674023874705,0.00179146,21280.0,21279.0,1.72486569]
[1674023874958,0.00179146,21280.0,21279.0,1.72520012]
[1674023878890,0.00179146,21280.0,21279.0,1.61267243]
[1674023879142,0.00179146,21280.0,21279.0,2.20265653]
[1674023879636,0.00179146,21280.0,21279.0,1.72516247]
[1674023880693,0.00179146,21280.0,21279.0,2.04066033]
[1674023880966,0.00179146,21280.0,21279.0,3.15659911]
[1674023881264,0.00179146,21280.0,21279.0,4.2142468]
[1674023881625,0.00179146,21280.0,21279.0,3.81783615]
[1674023882686,0.00179146,21280.0,21279.0,3.70733615]
[1674023882939,0.00179146,21280.0,21279.0,3.98857767]
[1674023883676,0.00179146,21280.0,21279.0,3.70733615]
[1674023883971,0.00179146,21280.0,21279.0,4.213414]
[1674023884501,0.00179146,21280.0,21279.0,3.93225964]
[1674023884756,0.00179146,21280.0,21279.0,4.213414]
[1674023885010,0.00179146,21280.0,21279.0,3.98849051]
[1674023885268,0.00179146,21280.0,21279.0,4.21342999]
[1674023886319,0.00179146,21280.0,21279.0,3.70733615]
[1674023886869,0.00179146,21280.0,21279.0,3.98844044]
[1674023888368,0.00179146,21280.0,21279.0,3.59683615]
[1674023888871,0.00179146,21280.0,21279.0,3.87789947]
[1674023889123,0.00179146,21280.0,21279.0,4.10275817]
[1674023889383,0.00179146,21280.0,21279.0,3.82169485]
[1674023890481,0.00558376,21281.0,21280.0,0.15140236]
[1674023890688,0.00558376,21281.0,21280.0,0.54294196]
[1674023890959,0.00558376,21281.0,21280.0,1.90374611]
[1674023891214,0.00558376,21281.0,21280.0,2.20374611]
[1674023891468,0.00704553,21281.0,21280.0,2.20374611]
[1674023892168,0.00704553,21281.0,21280.0,1.90374611]
[1674023892427,0.00704553,21281.0,21280.0,1.1456662]
[1674023892989,0.00704553,21281.0,21280.0,1.03325036]
[1674023897220,0.00704553,21281.0,21280.0,1.1456662]
[1674023897751,0.00704553,21281.0,21280.0,1.03325036]
[1674023898311,0.00704553,21281.0,21280.0,1.1456662]
[1674023898581,0.00704553,21281.0,21280.0,1.03325036]
[1674023898842,0.00704553,21281.0,21280.0,1.1456662]
[1674023899100,0.00704553,21281.0,21280.0,1.03325036]
[1674023899380,0.00558376,21281.0,21280.0,1.02859136]
[1674023900427,0.00558376,21281.0,21280.0,1.1410072]
[1674023900650,0.00558376,21281.0,21280.0,1.02859136]
[1674023900942,0.00558376,21281.0,21280.0,1.1410072]
[1674023903934,0.00558376,21281.0,21280.0,1.02859136]
[1674023904937,0.00558376,21281.0,21280.0,1.1410072]
[1674023906219,0.00558376,21281.0,21280.0,1.84327233]
[1674023906473,0.00558376,21281.0,21280.0,1.73098831]
[1674023906984,0.00558376,21281.0,21280.0,1.61841363]
[1674023907238,0.00558376,21281.0,21280.0,1.84327233]
[1674023907759,0.00558376,21281.0,21280.0,1.95571189]
[1674023908243,0.00558376,21281.0,21280.0,1.73085319]
[1674023908490,0.00558376,21281.0,21280.0,1.95609071]
[1674023908735,0.00558376,21281.0,21280.0,1.73085319]
[1674023910721,0.00558376,21281.0,21280.0,1.95610079]
[1674023910965,0.00558376,21281.0,21280.0,1.73085319]
[1674023911439,0.00558376,21281.0,21280.0,1.6750741]
[1674023912741,0.00558376,21281.0,21280.0,1.73085319]
[1674023913224,0.00558376,21281.0,21280.0,1.95612753]
[1674023913705,0.00558376,21281.0,21280.0,1.73085319]
[1674023914866,0.00558376,21283.0,21281.0,0.00432912]
[1674023915121,0.00558376,21283.0,21282.0,1.86782701]
[1674023915414,0.00558376,21283.0,21282.0,1.5862334]
[1674023915673,0.00558376,21283.0,21282.0,1.52988835]
[1674023915927,0.00558376,21283.0,21282.0,1.64255212]
[1674023916232,0.00558376,21283.0,21282.0,2.25804998]
[1674023916408,0.00558376,21283.0,21282.0,2.54728233]
[1674023916669,0.00558376,21283.0,21282.0,2.23178447]
[1674023917169,0.00558376,21283.0,21282.0,2.54728233]
[1674023917431,0.00558376,21283.0,21282.0,2.16778447]
[1674023917688,0.00558376,21283.0,21282.0,2.2301602]
[1674023917934,0.00558376,21283.0,21282.0,2.41967395]
[1674023918465,0.00558376,21283.0,21282.0,2.42000833]
[1674023919016,0.00558376,21283.0,21282.0,2.51200833]
[1674023919263,0.00558376,21283.0,21282.0,2.82750619]
[1674023919519,0.00558376,21283.0,21282.0,2.51200833]
[1674023920022,0.00558376,21283.0,21282.0,2.82750619]
[1674023921179,0.00558376,21283.0,21282.0,2.21200833]
[1674023921398,0.00558376,21283.0,21282.0,2.73717559]
[1674023922153,0.00558376,21283.0,21282.0,2.54599244]
[1674023922604,0.00558376,21283.0,21282.0,2.76649244]
[1674023923958,0.00558376,21283.0,21282.0,3.10388289]
[1674023925162,0.238924,21284.0,21283.0,0.15283893]
[1674023925415,0.238924,21284.0,21283.0,2.71695299]
[1674023926412,0.238924,21284.0,21283.0,2.80895299]
[1674023926664,0.238924,21284.0,21283.0,3.04387299]
[1674023926915,0.238924,21284.0,21283.0,3.49116344]
[1674023927165,0.238924,21284.0,21283.0,3.49966344]
[1674023927413,0.238924,21284.0,21283.0,4.03453545]
[1674023928133,0.238924,21284.0,21283.0,3.94253545]
[1674023928406,0.238924,21284.0,21283.0,4.03453545]
[1674023928665,0.238924,21284.0,21283.0,3.715645]
[1674023928929,0.238924,21284.0,21283.0,4.14480917]
[1674023929187,0.238924,21284.0,21283.0,3.807645]
[1674023929712,0.238924,21284.0,21283.0,4.1445657]
[1674023931289,0.238924,21284.0,21283.0,3.27275299]
[1674023932350,0.238924,21284.0,21283.0,4.1446679]
[1674023934391,0.00487211,21286.0,21285.0,0.15]
[1674023934656,0.00487211,21286.0,21285.0,3.58355722]
[1674023934917,0.00444489,21290.0,21289.0,0.01628909]
[1674023935169,0.00444489,21290.0,21289.0,1.57053896]
[1674023935474,0.00444489,21290.0,21289.0,1.53566709]
[1674023935686,0.00444489,21290.0,21289.0,1.83566709]
[1674023936202,0.00444489,21290.0,21289.0,1.92766709]
[1674023937173,0.00444489,21290.0,21289.0,2.40486878]
[1674023939000,0.00444489,21290.0,21289.0,2.51709019]
[1674023939311,0.00444489,21290.0,21289.0,2.40486878]
[1674023939565,0.00444489,21290.0,21289.0,3.30786016]
[1674023939814,0.00444489,21290.0,21289.0,3.00102332]
[1674023940069,0.00444489,21290.0,21289.0,2.83269121]
[1674023940318,0.00444489,21290.0,21289.0,2.51639019]
[1674023940847,0.00444489,21290.0,21289.0,2.40416878]
[1674023941098,0.00444489,21290.0,21289.0,2.6284698]
[1674023941351,0.00444489,21290.0,21289.0,2.74069121]
[1674023941610,0.00444489,21290.0,21289.0,2.83269121]
[1674023941950,0.00444489,21290.0,21289.0,2.83312305]
[1674023942122,0.00444489,21290.0,21289.0,2.40460062]
[1674023943204,0.00444489,21290.0,21289.0,2.68515414]
[1674023943446,0.00444489,21290.0,21289.0,2.51682203]
[1674023943709,0.00444489,21290.0,21289.0,2.72090164]
[1674023943985,0.00444489,21290.0,21289.0,2.70461255]
[1674023944234,0.00444489,21290.0,21289.0,3.51364499]
[1674023944500,0.01793266,21290.0,21289.0,3.51364499]
[1674023944713,0.01793266,21290.0,21289.0,2.81669437]
[1674023944964,0.01793266,21290.0,21289.0,2.50039335]
[1674023945724,0.01793266,21290.0,21289.0,2.81669437]
[1674023945976,0.01793266,21290.0,21289.0,2.50039335]
[1674023946241,0.01793266,21290.0,21289.0,2.97338165]
[1674023946502,0.01348777,21290.0,21289.0,3.46479338]
[1674023946764,0.00505166,21293.0,21290.0,0.15916169]
[1674023947038,0.00505166,21293.0,21290.0,1.79637138]
[1674023947300,0.00505166,21293.0,21290.0,2.6475124]
[1674023947550,0.00505166,21293.0,21290.0,3.23118557]
[1674023948095,0.00505166,21293.0,21290.0,2.75959057]
[1674023948408,0.00505166,21293.0,21290.0,2.85159057]
[1674023948892,0.00505166,21293.0,21290.0,2.53528955]
[1674023949888,0.00505166,21293.0,21290.0,2.42321138]
[1674023949890,0.00505166,21293.0,21290.0,2.53528955]
[1674023950394,0.00505166,21293.0,21290.0,2.42321138]
[1674023950667,0.00505166,21293.0,21290.0,2.53528955]
[1674023950931,0.00505166,21293.0,21290.0,2.42321138]
[1674023951438,0.00505166,21293.0,21290.0,2.53528955]
[1674023951710,0.00505166,21293.0,21290.0,2.85159057]
[1674023951960,0.00505166,21293.0,21290.0,2.53528955]
[1674023952494,0.00505166,21293.0,21290.0,2.74109057]
[1674023952747,0.00505166,21293.0,21290.0,2.42478955]
[1674023953277,0.00505166,21293.0,21290.0,2.90920939]
[1674023953564,0.00505166,21293.0,21290.0,3.32536874]
[1674023953811,0.00505166,21293.0,21290.0,3.32536846]
[1674023954063,0.30371363,21295.0,21291.0,0.15]
[1674023954320,0.1204042,21296.0,21292.0,1.88616669]
[1674023954579,0.1204042,21296.0,21293.0,0.03487187]
[1674023954919,0.1204042,21296.0,21294.0,1.408845]
[1674023955100,0.0099042,21296.0,21294.0,1.44371687]
[1674023955651,0.0099042,21296.0,21294.0,1.9589908]
[1674023956179,0.0099042,21296.0,21294.0,1.735655]
[1674023956392,0.0208042,21298.0,21294.0,1.735655]
[1674023956671,0.0208042,21298.0,21294.0,2.08518863]
[1674023956929,0.0208042,21298.0,21295.0,0.15]
[1674023957181,0.0208042,21298.0,21296.0,1.408713]
[1674023958240,0.01024641,21299.0,21296.0,1.88591469]
[1674023959089,0.01024641,21299.0,21296.0,1.97791469]
[1674023959609,0.11,21298.0,21296.0,1.88591469]
[1674023959863,0.11,21298.0,21296.0,1.501713]
[1674023960170,0.1105,21297.0,21296.0,1.032142]
[1674023960440,0.1105,21297.0,21296.0,0.939142]
[1674023960695,0.1105,21297.0,21296.0,1.031142]
[1674023960958,0.11,21298.0,21296.0,0.939142]
[1674023961225,0.11,21298.0,21296.0,1.031142]
[1674023964752,0.1105,21297.0,21296.0,1.031142]
[1674023965583,0.1105,21297.0,21296.0,0.939142]
[1674023965873,0.1105,21297.0,21296.0,1.031142]
[1674023969586,0.0105,21297.0,21296.0,1.031142]
[1674023970678,0.0105,21297.0,21296.0,0.561571]
[1674023971197,0.21406372,21297.0,21296.0,0.092]
[1674023971198,0.2123,21297.0,21296.0,0.092]
[1674023971452,0.442873,21297.0,21296.0,0.092]
[1674023971736,0.121,21297.0,21296.0,0.092]
[1674023974024,0.121,21297.0,21295.0,0.26832717]
[1674023974284,0.2199,21296.0,21294.0,0.469597]
[1674023974541,0.541573,21295.0,21294.0,0.469597]
[1674023974877,0.2197,21295.0,21294.0,0.469597]
[1674023975061,0.2197,21295.0,21294.0,0.939212]
[1674023975331,0.008,21296.0,21294.0,1.62884651]
[1674023975613,0.008,21296.0,21294.0,1.22640899]
[1674023975870,0.1098,21297.0,21295.0,0.15]
[1674023976156,0.1098,21297.0,21295.0,0.83263245]
[1674023976416,0.1098,21297.0,21296.0,0.939142]
[1674023976936,0.1178,21297.0,21296.0,0.939142]
[1674023977961,0.1098,21297.0,21296.0,0.939142]
[1674023978213,0.1178,21297.0,21296.0,0.946142]
[1674023979472,0.008,21297.0,21296.0,0.946142]
[1674023980263,0.008,21297.0,21296.0,1.05822017]
[1674023981066,0.1184,21297.0,21296.0,1.05822017]
[1674023981389,0.1184,21297.0,21296.0,0.946142]
[1674023985325,0.1184,21297.0,21296.0,0.476571]
[1674023989949,0.228,21297.0,21296.0,0.007]
[1674023990237,0.549873,21297.0,21296.0,0.007]
[1674023990962,0.449873,21297.0,21296.0,0.007]
[1674023991978,0.128,21297.0,21296.0,0.007]
[1674023992484,0.449873,21297.0,21296.0,0.007]
[1674023993258,0.128,21297.0,21296.0,0.007]
[1674023993523,0.449873,21297.0,21296.0,0.007]
[1674023994827,0.45163672,21297.0,21296.0,0.007]
[1674023995349,1.39097265,21297.0,21296.0,0.007]
[1674023995620,0.56213672,21297.0,21296.0,0.007]
[1674023995868,1.50148523,21297.0,21296.0,0.007]
[1674023996672,1.49972151,21297.0,21296.0,0.007]
[1674023997165,0.560373,21297.0,21296.0,0.007]
[1674023997426,1.49972633,21297.0,21296.0,0.007]
[1674023998457,2.43882433,21297.0,21296.0,0.007]
[1674023998724,2.86457404,21297.0,21296.0,0.007]
[1674023999503,2.75205647,21297.0,21296.0,0.007]
[1674023999767,2.86457404,21297.0,21296.0,0.007]
[1674024000296,2.5513419,21297.0,21296.0,0.007]
[1674024000832,2.43882433,21297.0,21296.0,0.007]
[1674024001332,2.5513419,21297.0,21296.0,0.007]
[1674024001596,3.03335731,21297.0,21296.0,0.007]
[1674024001844,3.33335731,21297.0,21296.0,0.007]
[1674024002069,3.03335731,21297.0,21296.0,0.007]
[1674024002367,2.86457404,21297.0,21296.0,0.007]
[1674024002627,5.22697757,21297.0,21296.0,0.007]
[1674024002876,5.22697757,21297.0,21290.0,0.59092486]
[1674024002877,4.7528754,21297.0,21290.0,0.59092486]
[1674024003134,4.7528754,21297.0,21296.0,0.001]
[1674024003135,1.79063896,21297.0,21296.0,0.001]
[1674024003426,3.76376712,21297.0,21296.0,0.001]
[1674024003680,4.07699926,21297.0,21296.0,0.001]
[1674024003937,4.16749261,21297.0,21290.0,0.62579673]
[1674024004196,1.91529272,21296.0,21290.0,0.63879673]
[1674024004451,0.1105,21291.0,21290.0,0.59092486]
[1674024004718,0.30122595,21291.0,21290.0,0.59092486]
[1674024004975,0.1105,21291.0,21290.0,0.59092486]
[1674024005492,0.1105,21291.0,21290.0,0.47884669]
[1674024005766,0.1105,21291.0,21290.0,0.59092486]
[1674024006026,0.1105,21292.0,21290.0,0.60492486]
[1674024006255,0.1105,21292.0,21290.0,1.06062886]
[1674024006512,0.007,21291.0,21290.0,1.07462886]
[1674024006777,0.007,21291.0,21290.0,0.96255069]
[1674024011795,0.00865423,21291.0,21290.0,0.96255069]
[1674024012048,0.00689051,21291.0,21290.0,0.96255069]
[1674024014722,0.00689051,21291.0,21290.0,1.07462886]
[1674024015239,0.00689051,21291.0,21290.0,0.96255069]
[1674024018325,0.00689051,21291.0,21290.0,1.07462886]
[1674024018590,0.00865423,21291.0,21290.0,0.96255069]
[1674024018841,0.00689051,21291.0,21290.0,0.96255069]
[1674024021431,0.00689051,21291.0,21290.0,0.49286569]
[1674024022477,0.00689051,21291.0,21290.0,0.96256969]
[1674024023002,0.00689051,21291.0,21290.0,0.49286569]
[1674024023535,0.09819051,21291.0,21290.0,0.49286569]
[1674024023794,1.06928605,21291.0,21290.0,0.02316169]
[1674024024057,1.38251819,21291.0,21290.0,0.02316169]
[1674024024603,1.38251819,21291.0,21290.0,0.00916169]
[1674024024604,1.95530968,21291.0,21290.0,0.00916169]
[1674024024860,1.96330968,21291.0,21290.0,0.02216169]
[1674024025125,1.95530968,21291.0,21290.0,0.00916169]
[1674024025439,1.95930968,21291.0,21290.0,0.02116169]
[1674024025862,1.53557754,21291.0,21290.0,0.02116169]
[1674024034384,0.546373,21291.0,21290.0,0.05603356]
[1674024034655,0.546373,21291.0,21290.0,0.02116169]
[1674024034656,0.004,21291.0,21290.0,0.02116169]
[1674024037225,0.004,21291.0,21290.0,0.49086569]
[1674024038029,0.00576372,21291.0,21290.0,0.49086569]
[1674024038270,0.004,21291.0,21290.0,0.02116169]
[1674024039013,0.004,21291.0,21290.0,0.49086569]
[1674024040033,0.004,21291.0,21290.0,0.60294386]
[1674024040304,0.004,21291.0,21290.0,0.49086569]
[1674024040841,0.004,21291.0,21290.0,0.60294386]
[1674024041054,0.00343485,21291.0,21290.0,0.60294386]
[1674024041286,0.00343485,21291.0,21290.0,1.18314786]
[1674024042550,0.00343485,21291.0,21290.0,0.96056969]
[1674024043568,0.00343485,21291.0,21290.0,1.07264786]
[1674024043822,0.00343485,21291.0,21290.0,1.52377192]
[1674024044092,0.00343485,21291.0,21290.0,1.2412482]
[1674024044348,0.00343485,21291.0,21290.0,1.07312938]
[1674024045151,0.00343485,21291.0,21290.0,1.06396769]
[1674024045401,0.00343485,21291.0,21290.0,1.62701699]
[1674024046589,0.00343485,21291.0,21290.0,1.23208651]
[1674024046841,0.00343485,21291.0,21290.0,1.62699517]
[1674024047577,0.00343485,21291.0,21290.0,1.23208651]
[1674024047800,0.00343485,21291.0,21290.0,1.06396769]
[1674024049507,0.00343485,21291.0,21290.0,1.23208651]
[1674024049789,0.00343485,21291.0,21290.0,1.62701241]
[1674024050067,0.00343485,21291.0,21290.0,1.23208651]
[1674024050571,0.00343485,21291.0,21290.0,1.62701294]
[1674024051407,0.00343485,21291.0,21290.0,1.38208651]
[1674024051672,0.00343485,21291.0,21290.0,1.77700649]
[1674024051925,0.00343485,21291.0,21290.0,1.62700649]
[1674024052185,0.00343485,21291.0,21290.0,1.73888962]
[1674024052767,0.00343485,21291.0,21290.0,1.73749541]
[1674024055027,0.00343485,21291.0,21290.0,1.34257543]
[1674024055278,0.00343485,21291.0,21290.0,1.73715106]
[1674024055526,0.00343485,21291.0,21290.0,1.17445661]
[1674024056272,0.00343485,21291.0,21290.0,1.73713512]
[1674024056511,0.00343485,21291.0,21290.0,1.34257543]
[1674024057012,0.00343485,21291.0,21290.0,1.62458589]
[1674024057535,0.00343485,21291.0,21290.0,1.73712591]
[1674024058296,0.00343485,21291.0,21290.0,1.17444802]
[1674024061919,0.00343485,21291.0,21290.0,1.49256684]
[1674024062464,0.00343485,21291.0,21290.0,1.34256684]
[1674024062731,0.00343485,21291.0,21290.0,1.49256684]
[1674024063260,0.00343485,21291.0,21290.0,1.34256684]
[1674024063530,0.00343485,21291.0,21290.0,1.17444802]
[1674024064558,0.00334519,21291.0,21290.0,1.17444802]
[1674024065507,0.00334519,21291.0,21290.0,1.34256684]
[1674024065766,0.00334519,21291.0,21290.0,1.73740924]
[1674024066286,0.00334519,21291.0,21290.0,1.34256684]
[1674024066812,0.00334519,21291.0,21290.0,1.73740881]
[1674024068101,0.00334519,21291.0,21290.0,1.17444802]
[1674024068353,0.09464519,21291.0,21290.0,0.59424402]
[1674024068607,0.09464519,21291.0,21290.0,0.012]
[1674024068862,0.41651819,21291.0,21290.0,0.012]
[1674024069388,0.00334519,21291.0,21290.0,0.012]
[1674024069617,0.00334519,21291.0,21290.0,0.59424402]
[1674024071156,0.00510891,21291.0,21290.0,0.59424402]
[1674024071446,0.00334519,21291.0,21290.0,0.481704]
[1674024071909,0.00334519,21291.0,21290.0,0.12454002]
[1674024072169,0.00510891,21291.0,21290.0,0.012]
[1674024072424,0.00334519,21291.0,21290.0,0.012]
[1674024073236,0.00510891,21291.0,21290.0,0.012]
[1674024073466,0.00334519,21291.0,21290.0,0.12454002]
[1674024074281,0.00334519,21291.0,21290.0,0.012]
[1674024075061,0.00510891,21291.0,21290.0,0.012]
[1674024075296,0.00334519,21291.0,21290.0,0.12454002]
[1674024075584,0.00334519,21291.0,21290.0,0.29265884]
[1674024075860,0.00334519,21291.0,21290.0,0.12454002]
[1674024076112,0.00510891,21291.0,21290.0,0.29265884]
[1674024076366,0.00334519,21291.0,21290.0,0.29265884]
[1674024077366,0.00334519,21291.0,21290.0,1.15819684]
[1674024079252,0.00334519,21291.0,21290.0,0.59424402]
[1674024080473,0.00334519,21291.0,21290.0,1.51509395]
[1674024080729,0.00334519,21291.0,21290.0,1.62752865]
[1674024080988,0.00334519,21291.0,21290.0,1.57223708]
[1674024081513,0.00334519,21291.0,21290.0,1.8527906]
[1674024082530,0.00334519,21291.0,21290.0,1.9632906]
[1674024082797,0.00278004,21291.0,21290.0,1.68273708]
[1674024083324,0.00278004,21291.0,21290.0,1.9632906]
[1674024083581,0.00278004,21291.0,21290.0,1.68273708]
[1674024084586,0.00278004,21291.0,21290.0,1.9632906]
[1674024087364,0.00278004,21291.0,21290.0,1.73802865]
[1674024089632,0.00278004,21291.0,21290.0,1.56797513]
[1674024089890,0.40853232,21296.0,21291.0,0.15177134]
[1674024090146,0.40853232,21296.0,21293.0,0.11259185]
[1674024090420,0.40853232,21296.0,21293.0,0.61709072]
[1674024090695,0.00176372,21295.0,21293.0,0.61709072]
[1674024090918,0.40853232,21296.0,21293.0,0.58221885]
[1674024091211,0.40853232,21296.0,21293.0,0.469627]